Workbook

Sheet 3月
A1: 城市居民最低生活保障工作情况统计表（一）
A2: 填报单位：鼓楼区民政局 (2026年3月）
A3: 区县 | C3: 非农 人口 总数 | D3: 保 障 对 象 情 况 | P3: 保障资金情况
D4: 户 数 | I4: 人 数 | O4: 保障对象占非农总人口比例 | P4: 本月发放金额 | Q4: 上月发放金额 | R4: 本月新增金额 | S4: 本月减少金额 | T4: 本月调增金额 | U4: 本月调减金额 | V4: 本月人均补差金额 | W4: 当年累计发放低保金额总额
D5: 本月数 | E5: 上月数 | F5: 本月新增数 | G5: 本月减少数 | H5: 本月调整数 | I5: 本月数 | J5: 上月数 | K5: 本月新增数 | L5: 本月减少数 | M5: 本月调增数 | N5: 本月调减数
C6: 万人 | D6: 户 | E6: 户 | F6: 户 | G6: 户 | H6: 户 | I6: 人 | J6: 人 | K6: 人 | L6: 人 | M6: 人 | N6: 人 | O6: （‰） | P6: 元 | Q6: 元 | R6: 元 | S6: 元 | T6: 元 | U6: 元 | V6: 元 | W6: 元
A7: 1 | C7: 2 | D7: 3 | E7: 4 | F7: 5 | G7: 6 | H7: 7 | I7: 8 | J7: 9 | K7: 10 | L7: 11 | M7: 12 | N7: 13 | O7: 14 | P7: 15 | Q7: 16 | R7: 17 | S7: 18 | T7: 19 | U7: 20 | V7: 21 | W7: 22
A8: 1 | B8: 华侨路 | C8: 7.02 | D8: 116 | E8: 117 | F8: 0 | G8: 1 | H8: 1 | I8: 162 | J8: 164 | K8: 0 | L8: 2 | M8: 0 | N8: 0 | O8: =I:I/C:C/10 -> 2.31 | P8: =Q8+R8-S8+T8-U8 -> 146408 | Q8: 147316 | R8: 0 | S8: 796 | T8: 0 | U8: 112 | V8: =P8/I8 -> 903.75 | W8: 444209
A9: 2 | B9: 宁海路 | C9: 8.35 | D9: =E9+F9-G9 -> 121 | E9: 120 | F9: 1 | G9: 0 | H9: 0 | I9: =J9+K9-L9+M9-N9 -> 142 | J9: 141 | K9: 1 | L9: 0 | M9: 0 | N9: 0 | O9: =SUM(I9/C9/10000*1000) -> 1.70 | P9: =Q9+R9-S9+T9-U9 -> 152619 | Q9: 151492 | R9: 1127 | S9: 0 | T9: 0 | U9: 0 | V9: =P9/I9 -> 1074.78 | W9: 454488
A10: 3 | B10: 湖南路 | C10: 5.90 | D10: =E10+F10-G10 -> 120 | E10: 121 | F10: 0 | G10: 1 | H10: 4 | I10: =J10+K10-L10+M10-N10 -> 150 | J10: 152 | K10: 0 | L10: 2 | M10: 0 | N10: 0 | O10: 2.54 | P10: =Q10+R10-S10+T10-U10 -> 151018 | Q10: 153325 | R10: 0 | S10: 1784 | T10: 552 | U10: 1075 | V10: 1006.79 | W10: 457333
A11: 4 | B11: 中央门 | C11: 9.94 | D11: 293 | E11: 296 | F11: 0 | G11: 3 | H11: 1 | I11: 405 | J11: 409 | K11: 0 | L11: 4 | M11: 0 | N11: 0 | O11: 4.07 | P11: 378164 | Q11: 380945 | R11: 0 | S11: 2669 | T11: 0 | U11: 112 | V11: 933.74 | W11: 1137390
A12: 5 | B12: 挹江门 | C12: 7.13 | D12: 186 | E12: 187 | F12: 0 | G12: 1 | H12: 0 | I12: 241 | J12: 242 | K12: 0 | L12: 1 | M12: 0 | N12: 0 | O12: 3.379325817 | P12: 240755 | Q12: 242093 | R12: 0 | S12: 1338 | T12: 0 | U12: 0 | V12: 998.98 | W12: 723826
A13: 6 | B13: 江东 | C13: 11.21 | D13: 72 | E13: 69 | F13: 3 | G13: 0 | H13: 1 | I13: 102 | J13: 99 | K13: 3 | L13: 0 | M13: 0 | N13: 0 | O13: =I13/C13/10 -> 0.91 | P13: 91465 | Q13: 88548 | R13: 3509 | S13: 0 | T13: 0 | U13: 592 | V13: 896.72 | W13: 268561
A14: 7 | B14: 凤凰 | C14: 10.40 | D14: 196 | E14: 197 | F14: 0 | G14: 1 | H14: 0 | I14: 262 | J14: 263 | K14: 0 | L14: 1 | M14: 0 | N14: 0 | O14: 2.5 | P14: 254263 | Q14: 254932 | R14: 0 | S14: 669 | T14: 0 | U14: 0 | V14: 970.47 | W14: 761118
A15: 8 | B15: 热南 | C15: 6.72 | D15: 175 | E15: 175 | F15: 1 | G15: 1 | H15: 0 | I15: 230 | J15: 230 | K15: 1 | L15: 1 | M15: 0 | N15: 0 | O15: 3.42 | P15: 204069 | Q15: 204181 | R15: 1115 | S15: 1227 | T15: 0 | U15: 0 | V15: 887.26 | W15: 611479
A16: 9 | B16: 下关 | C16: 4.02 | D16: =E16+F16-G16 -> 297 | E16: 298 | F16: 0 | G16: 1 | H16: 0 | I16: =J16+K16-L16+M16-N16 -> 386 | J16: 387 | K16: 0 | L16: 1 | M16: 0 | N16: 0 | O16: 10.47 | P16: =Q16+R16-S16+T16-U16 -> 346545 | Q16: 347317 | R16: 0 | S16: 772 | T16: 0 | U16: 0 | V16: 897.78 | W16: 1043722
A17: 10 | B17: 建宁路 | C17: 3.87 | D17: 168 | E17: 169 | F17: 0 | G17: 1 | H17: 2 | I17: 219 | J17: 221 | K17: 0 | L17: 2 | M17: 0 | N17: 0 | O17: =SUM(I17/C17/10000*1000) -> 5.66 | P17: 215499 | Q17: 216357 | R17: 0 | S17: 669 | T17: 323 | U17: 512 | V17: 984.01 | W17: 647929
A18: 11 | B18: 小市 | C18: 6.15 | D18: 241 | E18: 244 | F18: 0 | G18: 3 | H18: 0 | I18: 323 | J18: 326 | K18: 0 | L18: 3 | M18: 0 | N18: 0 | O18: 5.25 | P18: 297269 | Q18: 300450 | R18: 0 | S18: 3181 | T18: 0 | U18: 0 | V18: 920.34 | W18: 897054
A19: 12 | B19: 宝塔桥 | C19: 8.91 | D19: 488 | E19: 492 | F19: 2 | G19: 6 | H19: 1 | I19: 701 | J19: 706 | K19: 2 | L19: 6 | M19: 0 | N19: 1 | O19: 7.86 | P19: 636879 | Q19: 642758 | R19: 1896 | S19: 6649 | T19: 0 | U19: 1126 | V19: 908.53 | W19: 1924054
A20: 13 | B20: 幕府山 | C20: 5.85 | D20: =E20+F20-G20 -> 190 | E20: 194 | F20: 0 | G20: 4 | H20: 0 | I20: =J20+K20-L20+M20-N20 -> 260 | J20: 265 | K20: 0 | L20: 5 | M20: 0 | N20: 0 | O20: =I20/3.97/10 -> 6.55 | P20: =Q20+R20-S20+T20-U20 -> 260465 | Q20: 264877 | R20: 0 | S20: 4412 | T20: 0 | U20: 0 | V20: 1001.79 | W20: 794176
A21: 合计 | C21: =SUM(C8:C20) -> 85.53 | D21: 2663 | E21: 2679 | F21: 7 | G21: 23 | H21: 10 | I21: 3583 | J21: 3605 | K21: 7 | L21: 28 | M21: 0 | N21: 1 | O21: =I21/C21/10 -> 4.19 | P21: 3375418 | Q21: 3394591 | R21: 7647 | S21: 24166 | T21: 875 | U21: 3529 | V21: 942.06 | W21: 10165339
A22: 填表人： 填表时间： 2026.3 签批人：
W37: 17772608
